{"text_format":"3","workbook":"xlsx","n_sheets":2,"sheets":["Зведення бюджету","Відомості про бюджет"],"not_rendered":{"images":1,"defined_names":1},"read":"whole","date_system":"1900"}

{"sheet":"Зведення бюджету","index":0,"n_rows":28,"n_cols":7,"rows_kept":28}
[{"$nulls":6}," "]
[]
[null,"ЗАГАЛЬНИЙ БЮДЖЕТ ВЕСІЛЛЯ",{"v":20000,"d":"20,000₴"}]
[]
[null,"ВИТРАТИ","Розподіл \n%","Виділений бюджет","Приблизно \nВитрати","Фактично \nВитрати"]
[null,"Банкет",{"v":0.5,"d":"50%"},{"$f":"Загальний_Весільний_Бюджет*'Зведення бюджету'!$C6","v":{"v":10000,"d":"10,000₴"}},{"$f":"Таблиця_Реєстрація[[#Totals],[Орієнтовна вартість]]","v":{"v":0,"d":"0₴"}},{"$f":"Таблиця_Реєстрація[[#Totals],[Фактична вартість]]","v":{"v":0,"d":"0₴"}}]
[null,"Одяг",{"v":0.1,"d":"10%"},{"$f":"Загальний_Весільний_Бюджет*'Зведення бюджету'!$C7","v":{"v":2000,"d":"2,000₴"}},{"$f":"Таблиця_Убрання[[#Totals],[Орієнтовна вартість]]","v":{"v":0,"d":"0₴"}},{"$f":"Таблиця_Убрання[[#Totals],[Фактична вартість]]","v":{"v":0,"d":"0₴"}}]
[null,"Квіти й прикраси",{"v":0.1,"d":"10%"},{"$f":"Загальний_Весільний_Бюджет*'Зведення бюджету'!$C8","v":{"v":2000,"d":"2,000₴"}},{"$f":"Таблиця_КвітиТаПрикраси[[#Totals],[Орієнтовна вартість]]","v":{"v":0,"d":"0₴"}},{"$f":"Таблиця_КвітиТаПрикраси[[#Totals],[Фактична вартість]]","v":{"v":0,"d":"0₴"}}]
[null,"Музика",{"v":0.1,"d":"10%"},{"$f":"Загальний_Весільний_Бюджет*'Зведення бюджету'!$C9","v":{"v":2000,"d":"2,000₴"}},{"$f":"Таблиця_Музика[[#Totals],[Орієнтовна вартість]]","v":{"v":0,"d":"0₴"}},{"$f":"Таблиця_Музика[[#Totals],[Фактична вартість]]","v":{"v":0,"d":"0₴"}}]
[null,"Фото- та відеозйомка",{"v":0.1,"d":"10%"},{"$f":"Загальний_Весільний_Бюджет*'Зведення бюджету'!$C10","v":{"v":2000,"d":"2,000₴"}},{"$f":"Таблиця_ФотоТаВідео[[#Totals],[Орієнтовна вартість]]","v":{"v":0,"d":"0₴"}},{"$f":"Таблиця_ФотоТаВідео[[#Totals],[Фактична вартість]]","v":{"v":0,"d":"0₴"}}]
[null,"Сувеніри та подарунки",{"v":0.03,"d":"3%"},{"$f":"Загальний_Весільний_Бюджет*'Зведення бюджету'!$C11","v":{"v":600,"d":"600₴"}},{"$f":"Таблиця_ДобродійствоТаПодарунки[[#Totals],[Орієнтовна вартість]]","v":{"v":0,"d":"0₴"}},{"$f":"Таблиця_ДобродійствоТаПодарунки[[#Totals],[Фактична вартість]]","v":{"v":0,"d":"0₴"}}]
[null,"Церемонія",{"v":0.02,"d":"2%"},{"$f":"Загальний_Весільний_Бюджет*'Зведення бюджету'!$C12","v":{"v":400,"d":"400₴"}},{"$f":"Таблиця_Церемонія[[#Totals],[Орієнтовна вартість]]","v":{"v":0,"d":"0₴"}},{"$f":"Таблиця_Церемонія[[#Totals],[Фактична вартість]]","v":{"v":0,"d":"0₴"}}]
[null,"Канцелярія",{"v":0.02,"d":"2%"},{"$f":"Загальний_Весільний_Бюджет*'Зведення бюджету'!$C13","v":{"v":400,"d":"400₴"}},{"$f":"Таблиця_Канцелярія[[#Totals],[Орієнтовна вартість]]","v":{"v":0,"d":"0₴"}},{"$f":"Таблиця_Канцелярія[[#Totals],[Фактична вартість]]","v":{"v":0,"d":"0₴"}}]
[null,"Весільні обручки",{"v":0.02,"d":"2%"},{"$f":"Загальний_Весільний_Бюджет*'Зведення бюджету'!$C14","v":{"v":400,"d":"400₴"}},{"$f":"Таблиця_Обручки[[#Totals],[Орієнтовна вартість]]","v":{"v":0,"d":"0₴"}},{"$f":"Таблиця_Обручки[[#Totals],[Фактична вартість]]","v":{"v":0,"d":"0₴"}}]
[null,"Транспорт",{"v":0.01,"d":"1%"},{"$f":"Загальний_Весільний_Бюджет*'Зведення бюджету'!$C15","v":{"v":200,"d":"200₴"}},{"$f":"Таблиця_Транспортування[[#Totals],[Орієнтовна вартість]]","v":{"v":0,"d":"0₴"}},{"$f":"Таблиця_Транспортування[[#Totals],[Фактична вартість]]","v":{"v":0,"d":"0₴"}}]
[null,"Підсумок",{"$f":"SUM(C6:C15)","v":{"v":1,"d":"100%"}},{"$f":"SUM(D6:D15)","v":{"v":20000,"d":"20,000₴"}},{"v":0,"d":"0₴"},{"v":0,"d":"0₴"}]
[]
[null,"КОШТИ"]
[null,"Джерело","Кошти"]
[null,"Заощадження",{"v":10000,"d":"10,000₴"}]
[null,"Батьки нареченої",{"v":4000,"d":"4,000₴"}]
[null,"Дідусь і бабуся нареченої",{"v":2000,"d":"2,000₴"}]
[null,"Батьки нареченого",{"v":4000,"d":"4,000₴"}]
[null,"Дідусь і бабуся нареченого",{"v":4000,"d":"4,000₴"}]
[null,"Інші кошти",{"v":2000,"d":"2,000₴"}]
[null,"Підсумок",{"$f":"SUBTOTAL(109,Таблиця_Внески[Кошти])","v":{"v":26000,"d":"26,000₴"}}]
[]
[null,{"$f":"IF(Таблиця_Внески[[#Totals],[Кошти]]<Загальний_Весільний_Бюджет,\"Різниця, яку потрібно покрити\",\"Доступні додаткові гроші\")","v":"Доступні додаткові гроші"},{"$f":"IF(Таблиця_Внески[[#Totals],[Кошти]]<Загальний_Весільний_Бюджет,Загальний_Весільний_Бюджет-Таблиця_Внески[[#Totals],[Кошти]],Таблиця_Внески[[#Totals],[Кошти]]-Загальний_Весільний_Бюджет)","v":{"v":6000,"d":"6,000₴"}}]

{"sheet":"Відомості про бюджет","index":1,"n_rows":80,"n_cols":4,"rows_kept":80}
[]
[null,"БАНКЕТ","Орієнтовна вартість","Фактична вартість"]
[null,"Місце проведення й оренда"]
[null,"Їжа й обслуговування"]
[null,"Напої"]
[null,"Торт"]
[null,"Інші витрати"]
[null,"Підсумок",{"$f":"SUBTOTAL(109,Таблиця_Реєстрація[Орієнтовна вартість])","v":{"v":0,"d":"0.00₴"}},{"$f":"SUBTOTAL(109,Таблиця_Реєстрація[Фактична вартість])","v":{"v":0,"d":"0.00₴"}}]
[]
[null,"ОДЯГ","Орієнтовна вартість","Фактична вартість"]
[null,"Смокінг, костюм, сукня"]
[null,"Зміни"]
[null,"Фігурки на торт і фата"]
[null,"Аксесуари"]
[null,"Зачіска та макіяж"]
[null,"Інші витрати"]
[null,"Підсумок",{"$f":"SUBTOTAL(109,Таблиця_Убрання[Орієнтовна вартість])","v":{"v":0,"d":"0.00₴"}},{"$f":"SUBTOTAL(109,Таблиця_Убрання[Фактична вартість])","v":{"v":0,"d":"0.00₴"}}]
[]
[null,"КВІТИ Й ПРИКРАСИ","Орієнтовна вартість","Фактична вартість"]
[null,"Квіткові композиції для церемонії"]
[null,"Кошик і квіти для дівчаток, які розсипають пелюстки"]
[null,"Подушка з обручками"]
[null,"Букети"]
[null,"Бутоньєрки"]
[null,"Браслети"]
[null,"Прикраси для місця проведення"]
[null,"Освітлення"]
[null,"Інші витрати"]
[null,"Підсумок",{"$f":"SUBTOTAL(109,Таблиця_КвітиТаПрикраси[Орієнтовна вартість])","v":{"v":0,"d":"0.00₴"}},{"$f":"SUBTOTAL(109,Таблиця_КвітиТаПрикраси[Фактична вартість])","v":{"v":0,"d":"0.00₴"}}]
[]
[null,"МУЗИКА","Орієнтовна вартість","Фактична вартість"]
[null,"Музиканти на церемонію"]
[null,"Музиканти для перерви на коктейлі"]
[null,"Музичний гурт, ді-джей або розважальна програма"]
[null,"Прокат звукового обладнання або танц-полу"]
[null,"Інші витрати"]
[null,"Підсумок",{"$f":"SUBTOTAL(109,Таблиця_Музика[Орієнтовна вартість])","v":{"v":0,"d":"0.00₴"}},{"$f":"SUBTOTAL(109,Таблиця_Музика[Фактична вартість])","v":{"v":0,"d":"0.00₴"}}]
[]
[null,"ФОТО- ТА ВІДЕОЗЙОМКА","Орієнтовна вартість","Фактична вартість"]
[null,"Фотозйомка"]
[null,"Відеозйомка"]
[null,"Додаткові роздруківки й альбоми"]
[null,"Інші витрати"]
[null,"Підсумок",{"$f":"SUBTOTAL(109,Таблиця_ФотоТаВідео[Орієнтовна вартість])","v":{"v":0,"d":"0.00₴"}},{"$f":"SUBTOTAL(109,Таблиця_ФотоТаВідео[Фактична вартість])","v":{"v":0,"d":"0.00₴"}}]
[]
[null,"СУВЕНІРИ ТА ПОДАРУНКИ","Орієнтовна вартість","Фактична вартість"]
[null,"Вітальні подарунки"]
[null,"Подарунки на вечірку"]
[null,"Інші витрати"]
[null,"Підсумок",{"$f":"SUBTOTAL(109,Таблиця_ДобродійствоТаПодарунки[Орієнтовна вартість])","v":{"v":0,"d":"0.00₴"}},{"$f":"SUBTOTAL(109,Таблиця_ДобродійствоТаПодарунки[Фактична вартість])","v":{"v":0,"d":"0.00₴"}}]
[]
[null,"ЦЕРЕМОНІЯ","Орієнтовна вартість","Фактична вартість"]
[null,"Оренда місця проведення"]
[null,"Плата офіціантам або пожертва для церкви"]
[null,"Інші витрати"]
[null,"Підсумок",{"$f":"SUBTOTAL(109,Таблиця_Церемонія[Орієнтовна вартість])","v":{"v":0,"d":"0.00₴"}},{"$f":"SUBTOTAL(109,Таблиця_Церемонія[Фактична вартість])","v":{"v":0,"d":"0.00₴"}}]
[]
[null,"КАНЦЕЛЯРІЯ","Орієнтовна вартість","Фактична вартість"]
[null,"Листівки-запрошення"]
[null,"Запрошення та бланки для відповідей"]
[null,"Програми"]
[null,"Картки розсадки та карта місця"]
[null,"Картки меню"]
[null,"Листівки з подякою"]
[null,"Поштові витрати"]
[null,"Інші витрати"]
[null,"Підсумок",{"$f":"SUBTOTAL(109,Таблиця_Канцелярія[Орієнтовна вартість])","v":{"v":0,"d":"0.00₴"}},{"$f":"SUBTOTAL(109,Таблиця_Канцелярія[Фактична вартість])","v":{"v":0,"d":"0.00₴"}}]
[]
[null,"ВЕСІЛЬНІ ОБРУЧКИ","Орієнтовна вартість","Фактична вартість"]
[null,"Весільні обручки"]
[null,"Аксесуари для обручок"]
[null,"Підсумок",{"$f":"SUBTOTAL(109,Таблиця_Обручки[Орієнтовна вартість])","v":{"v":0,"d":"0.00₴"}},{"$f":"SUBTOTAL(109,Таблиця_Обручки[Фактична вартість])","v":{"v":0,"d":"0.00₴"}}]
[]
[null,"ТРАНСПОРТ","Орієнтовна вартість","Фактична вартість"]
[null,"Прокат основного авто"]
[null,"Прокат авто для гостей"]
[null,"Трансфер гостей з інших міст"]
[null,"Послуги паркувальника"]
[null,"Інші витрати"]
[null,"Підсумок",{"$f":"SUBTOTAL(109,Таблиця_Транспортування[Орієнтовна вартість])","v":{"v":0,"d":"0.00₴"}},{"$f":"SUBTOTAL(109,Таблиця_Транспортування[Фактична вартість])","v":{"v":0,"d":"0.00₴"}}]